Cogmind - Beta 13 @@@ ROGUE MODE // 2024.03.21 @ 18:48:00 Player: jpka Result: Destroyed by 9Y-WAS(R) with Subdweller Machine Gun Performance ------------- Evolutions (0) 0 Regions Visited (2) 400 Robots Destroyed (3) 15 Value Destroyed (130) 130 Prototype IDs (0) 0 Alien Tech Used (0) 0 Bonus (0) 0 TOTAL SCORE: 545 Bonus ------- None Cogmind --------- Core Integrity 0/250 Matter 300/300 Energy 199/200 System Corruption 0% Temperature Cool (0) Movement Core (150) Ox2 Location -10/Subcaves Parts ------- > --- POWER (1) -------- Subdweller Power Source > --- PROPULSION (2) --- (None) > --- UTILITY (2) ------ (None) > --- WEAPON (2) ------- Battle Rifle > --- INVENTORY (5) ---- Ion Engine Heat Sink Small Storage Unit Sensor Array Assault Rifle Peak State ------------ > --- POWER ------------ Subdweller Power Source > --- PROPULSION ------- Wheel Compact Wheel > --- UTILITY ---------- Scrap Shield > --- WEAPON ----------- Battle Rifle Battle Cannon > --- INVENTORY -------- Ion Engine Heat Sink Small Storage Unit Sensor Array Assault Rifle [Rating: 12] Favorites ----------- Power Ion Engine Engine Ion Engine Propulsion Wheel Wheel Wheel Utility Small Storage Unit Device Structural Scanner Storage Small Storage Unit Protection Scrap Shield Weapon Small Laser Energy Gun Small Laser Ballistic Gun Light Assault Rifle Ballistic Cannon Battle Cannon Launcher Grenade Launcher Build | -11 -10 -10 ------- Run | Yrd Mat Sub Slots Evolved . | . . . Power . | . . . Propulsion . | . . . Utility . | . . . Weapon . | . . . Parts Attached 14 | 6 3 5 Power 2 | 1 . 1 Engine 2 | 1 . 1 Core . | . . . Reactor . | . . . Propulsion 2 | 2 . . Treads . | . . . Leg . | . . . Wheel 2 | 2 . . Hover . | . . . Flight . | . . . Utility 5 | 1 2 2 Device 2 | . 1 1 Storage 2 | 1 1 . Processor . | . . . Hackware . | . . . Protection 1 | . . 1 Artifact . | . . . Weapon 5 | 2 1 2 Energy Gun 1 | 1 . . Energy Cannon . | . . . Ballistic Gun 2 | 1 . 1 Ballistic Cannon 1 | . . 1 Launcher 1 | . 1 . Special Weapon . | . . . Impact Weapon . | . . . Slashing Weapon . | . . . Piercing Weapon . | . . . Special Melee Weapon . | . . . Unidentified Prototypes . | . . . Parts Lost 5 | . . 5 Power . | . . . Propulsion 2 | . . 2 Utility 1 | . . 1 Weapon 2 | . . 2 Highest Loss Streak 4 | . . 4 To Critical Strikes . | . . . Average Slot Usage (%) 90 | . 94 89 Engine 14 | . 14 14 Wheel 27 | . 28 27 Device 7 | . 8 6 Storage 8 | . 14 6 Protection 4 | . . 6 Energy Gun 8 | . 14 6 Ballistic Gun 9 | . 12 7 Ballistic Cannon 5 | . . 7 Launcher 3 | . 1 4 Naked Turns . | . . . Heaviest Build 28 | 12 17 28 Greatest Support 26 | 26 26 26 Greatest Overweight (x) 3 | 3 . 2 Average Overweight (x) . | 1 . . Largest Inventory Capacity 8 | 8 8 8 Average Capacity 7 | 7 8 6 Most Carried 8 | 2 7 8 Average Carried 5 | . 5 6 Final Capacity 8 | 8 8 5 Final Carried 7 | 2 7 5 Class Distribution -------------------- 100% | Mutant Dominant Class ---------------- Mutant | -10/Materials Mutant | -10/Subcaves Resources | -11 -10 -10 ----------- Run | Yrd Mat Sub Matter Collected 376 | 216 51 109 Remotely . | . . . Salvage Created 99 | . . 99 Parts 6 | . . 6 Haulers Intercepted . | . . . Recyclers Shooed . | . . . Parts Field Recycled . | . . . Retrieved Matter . | . . . Parts Self-Destructed 5 | . . 5 Prevented . | . . . Kills | -11 -10 -10 ------- Run | Yrd Mat Sub Combat Hostiles Destroyed 3 | . . 3 AOE 3 | . . 3 Classes Destroyed 1 | . . 1 Subdweller 3 | . . 3 Best Kill Streak 3 | . . 3 Combat Bots Only 3 | . . 3 Max Kills in Single Turn 1 | . . 1 Gunslinging . | . . . Exploded 1 | . . 1 Melee . | . . . Uniques/NPCs Destroyed . | . . . Combat | -11 -10 -10 -------- Run | Yrd Mat Sub Hostile Shots Fired 71 | . . 71 Missed 29 | . . 29 Damage Taken 963 | . 23 940 Core 261 | . . 261 Absorbed by Shields . | . . . Core Remaining (%) 100 | 100 . . Volleys Fired 5 | . 2 3 Largest 2 | . 2 1 Hottest 60 | . 60 30 Shots Fired 6 | . 3 3 Gun 2 | . 2 . Cannon . | . . . Launcher 4 | . 1 3 Special . | . . . Kinetic 1 | . 1 . Thermal 1 | . 1 . Explosive 4 | . 1 3 Electromagnetic . | . . . Robot Hit Streak 2 | . . 2 Robot Miss Streak . | . . . Penetration Max . | . . . Secondary Targets . | . . . Shots Hit Robots 2 | . . 2 Core Hits 3 | . . 3 Critical Kills . | . . . Critical Parts Destroyed . | . . . Critical Strikes . | . . . Melee Attacks . | . . . Impact . | . . . Slashing . | . . . Piercing . | . . . Sneak Attacks . | . . . Combat Hostiles . | . . . Follow-up Attacks . | . . . Damage Inflicted 257 | . . 257 Guns . | . . . Cannons . | . . . Explosions 257 | . . 257 Melee . | . . . Ramming . | . . . Kinetic . | . . . Thermal . | . . . Explosive 257 | . . 257 Electromagnetic . | . . . Impact . | . . . Slashing . | . . . Piercing . | . . . Highest Corruption . | . . . Average Corruption . | . . . Corruption Purged . | . . . Corruption Blocked . | . . . Overload Shots . | . . . Overflow Damage . | . . . Projectiles . | . . . Explosions . | . . . Melee . | . . . Knockbacks . | . . . Impact . | . . . Kinetic . | . . . Secondary . | . . . Self-Inflicted Damage 30 | . 23 7 Shots 2 | . 1 1 Rammed . | . . . Targets Rammed . | . . . Kicked . | . . . Crushed . | . . . Highest Temperature 20 | . 20 . Average Temperature 15 | . 15 . Received Heat Transfer 180 | . . 180 Siege Activations . | . . . Robots Corrupted . | . . . Combat Hostiles . | . . . Parts Fried . | . . . Impact Corruptions . | . . . Robots Melted . | . . . Combat Hostiles . | . . . Parts Melted . | . . . Heat Transferred . | . . . Parts Sabotaged . | . . . Parts Stolen . | . . . Parts Stripped . | . . . Power Chain Reactions . | . . . Alert | -11 -10 -10 ------- Run | Yrd Mat Sub Peak Influence 23 | . 23 . Initial . | . . . Average . | . 1 . Maximum Alert Level . | . . . Low Security (%) 100 | 100 100 . Level 1 . | . . . Level 2 . | . . . Level 3 . | . . . Level 4 . | . . . Level 5 . | . . . High Security . | . . . Max Security . | . . . Squads Dispatched . | . . . Investigation . | . . . Extermination . | . . . Reinforcement . | . . . Assault . | . . . Garrison . | . . . Intercept . | . . . Searches Triggered . | . . . Construction Impeded . | . . . Haulers Reinforced . | . . . Active Scanning Responses . | . . . Cargo Convoy Interrupts . | . . . Stealth | -11 -10 -10 --------- Run | Yrd Mat Sub Distress Signals . | . . . Communications Jammed . | . . . Distress Signals . | . . . Times Spotted 16 | . . 16 Peak Tracking Total 11 | . . 11 Tactical Retreats 1 | . . 1 Traps | -11 -10 -10 ------- Run | Yrd Mat Sub Traps Triggered . | . . . Indirectly . | . . . Trap Hack Attempts . | . . . Triggered . | . . . Disarmed . | . . . Reprogrammed . | . . . Reused . | . . . Traps Extracted . | . . . Installed . | . . . Triggered . | . . . Machines | -11 -10 -10 ---------- Run | Yrd Mat Sub Machines Disabled 1 | . 1 . Max in Single Turn 1 | . 1 . Machines Repaired . | . . . Machines Dismantled . | . . . Machines Sabotaged . | . . . Overloaded Fab Kills . | . . . Hacking | -11 -10 -10 --------- Run | Yrd Mat Sub Machines Accessed . | . . . Terminals . | . . . Fabricators . | . . . Repair Stations . | . . . Recycling Units . | . . . Scanalyzers . | . . . Garrison Access . | . . . Total Hacks . | . . . Successful . | . . . Failed . | . . . Catastrophic . | . . . Database Lockouts . | . . . Manual . | . . . Terminals . | . . . Fabricators . | . . . Repair Stations . | . . . Recycling Units . | . . . Scanalyzers . | . . . Garrison Access . | . . . Terminal Hacks . | . . . Fabricator Hacks . | . . . Repair Station Hacks . | . . . Recycling Unit Hacks . | . . . Scanalyzer . | . . . Garrison Access Hacks . | . . . Unauthorized Hacks . | . . . Terminals . | . . . Fabricators . | . . . Repair Stations . | . . . Recycling Units . | . . . Scanalyzers . | . . . Garrison Access . | . . . Data Cores Recovered . | . . . Used . | . . . Hacking Detections . | . . . Full Trace Events . | . . . Feedback Events . | . . . Feedback Blocked . | . . . Robot Schematics Acquired . | . . . Robots Built . | . . . Authchips . | . . . Time . | . . . Total Robot Build Rating . | . . . Part Schematics Acquired . | . . . Parts Built . | . . . Authchips . | . . . Time . | . . . Total Part Build Rating . | . . . Parts Repaired . | . . . Time . | . . . Parts Recycled . | . . . Recycled Matter . | . . . Retrieved Matter . | . . . Retrieved Components . | . . . Parts Scanalyzed . | . . . Part Schematics Acquired . | . . . Parts Damaged . | . . . Bothacking | -11 -10 -10 ------------ Run | Yrd Mat Sub Used RIF Installer . | . . . Robots Hacked . | . . . Non-combat . | . . . Combat . | . . . Robot Hacks Applied . | . . . Relay Couplers Released . | . . . Fabnet Peak Effective % . | . . . Robots Rewired . | . . . Allies Hacked . | . . . Hacks Repelled . | . . . Allies | -11 -10 -10 -------- Run | Yrd Mat Sub Total Allies . | . . . Largest Group . | . . . Highest-Rated Group . | . . . Highest-Rated Ally . | . . . Total Orders . | . . . Ally Attacks . | . . . Total Damage . | . . . Kills . | . . . Allies Corrupted . | . . . Allies Melted 1 | . . 1 Intel | -11 -10 -10 ------- Run | Yrd Mat Sub Robot Analysis Total . | . . . Derelict Logs Recovered 2 | . . 2 Drone Launches . | . . . Drone Recoveries . | . . . Exploration | -11 -10 -10 ------------- Run | Yrd Mat Sub Turns Passed 519 | 87 123 309 Spaces Moved 468 | 63 121 284 Core 30 | 25 . 5 Treads . | . . . Legs . | . . . Wheels 438 | 38 121 279 Hover . | . . . Flight . | . . . Fastest Speed 50 | 50 90 90 Average Speed 99 | 121 90 98 Slowest Speed 200 | 200 90 150 Overloaded Moves . | . . . Propulsion Burnouts . | . . . Robots Hopped . | . . . Cave-ins Triggered . | . . . Exploration Rate (%) 17 | 4 16 31 Regions Visited 2 Branch Regions 1 Pre-discovered Areas 1 | . . 1 Known Exits Taken . | . . . Unknown Exits Taken 2 | 1 1 . Scrap Searched 1 | . . 1 Spaces Dug 8 | . 8 . Terrain Destroyed 27 | . 8 19 Melee . | . . . Projectile . | . . . AOE 27 | . 8 19 Terrain Rammed . | . . . Walls Destroyed . | . . . Machines Disabled . | . . . Actions | -11 -10 -10 --------- Run | Yrd Mat Sub Total 515 | 70 131 314 Wait 5 | . . 5 Move 466 | 62 120 284 Hop . | . . . Pick Up 13 | 2 5 6 Fast Attach 8 | 6 1 1 Attach 2 | . 1 1 Detach 1 | . 1 . Swap 4 | . 1 3 Drop 7 | . . 7 Fire 5 | . 2 3 Melee . | . . . Ram . | . . . Kick . | . . . Crush . | . . . Escape Stasis . | . . . Rewire 2 | . . 2 Trap . | . . . Miscellaneous 2 | . . 2 Route ------- -11/Scrapyard -10/Materials -10/Subcaves (discovered 1 exit: Rec) History --------- Turn | Location | Event 29 | -11/Scrapyard | Discovered new exit (range 15) 88 | -11/Scrapyard | Entered Materials 186 | -10/Materials | Discovered new exit (range 9) 211 | -10/Materials | Entered Subcaves 218 | -10/Subcaves | Identified exit to Recycling 300 | -10/Subcaves | Ambushed by swarm of Subdwellers 300 | -10/Subcaves | Build established: Mutant 301 | -10/Subcaves | Ambushed by Subdwellers from Twisted Machinery 301 | -10/Subcaves | Ambushed by Subdwellers from Twisted Machinery 344 | -10/Subcaves | Learned location of Recycling (-7) 346 | -10/Subcaves | Shifting Twisted Machinery released Battle Cannon 346 | -10/Subcaves | Lost 4 allies 347 | -10/Subcaves | Shifting Twisted Machinery released Scrap Shield 515 | -10/Subcaves | Core integrity fell below 50% 518 | -10/Subcaves | Core integrity fell below 20% 520 | -10/Subcaves | Destroyed by 9Y-WAS(R) with Subdweller Machine Gun Last Messages --------------- 5Z-UNG(R) emerges from concealment. 00454_ Scrap Shield Fragment affixed to Scrap Shield (+48). 00474_ Acquired 14 matter. 00494_ Attempting to rewire BG-EOF(O). 00494_ BG-EOF(O) is unpowered. 00495_ Attempting to rewire BG-EOF(O). 00495_ BG-EOF(O) is unpowered. 00496_ BG-EOF(O) wakes at your presence. 00496_ BG-EOF(O): "LVR3C?" 00500_ BG-EOF(O) collects matter. 00506_ CJ-WWY(R) destroyed. 00512_ Critical hit (Destroy). 00512_ Scrap Shield destroyed. 00512_ Battle Cannon destroyed. 00512_ Wheel destroyed. 00513_ Com. Wheel destroyed. 00514_ MT-JUZ(R) destroyed. 00520_ PL-UWT(R) affixes Scrap Shield Fragment to Scrap Shield. Map ----- +----------------------------------------------------+ | ????????????????????????????????????????????????? | | ????????????????????????????????????????????????? | | ????????????????????????????????????????????????? | | ????????????????????????????????????????????????? | | ????????????????????????????????????????????????? | | ????????????????????????????????????????????????? | | ????????????????????????????????????????????????? | | ????????????????????????????????????????????????? | | ????????????????????????????????????????????????? | | ????????????????????????????????????????????????? | | ????????????????????????????????????????????????? | | ????????????????????????????????????????????????? | | ????????????????????????????????????????????????? | | ????????????????????????????????????????????????? | | ????????????????????????????????????????????????? | | ????????????????????????????????????????????????? | | ????????????????????????????????????????????????? | | ????????????????????????????????????????????????? | | ????????????????????????????????????????????????? | | ???????????????????###??????????????????????????? | | ?????????????????###;###????????????????????????? | | ???????????????### ##????? ????????????????? | | ???????????????# % #???? #???????????????? | | ??????????????## ##?? #???????????????? | | ??????????????# RR& #?# #???????????????? | | ??????????????# %R *[%&@## #????????????????? | | ??????????????# R RR;### #????????????????? | | ??????????????# *### #????????????????? | | ??????????????# % #?????????????????? | | ??????????????## #?????????????????? | | ???????????????### % ###?????????????????? | | ?????????????????### # ###???????????????????? | | ??????????????????# #####?????????????????????? | | ??????????????????## ###??????????????????????? | | ??????????????????## #######????????????????? | | ??????????????????# % ###??????????????? | | ??????????????????# % #??????????????? | | ??????????????????# ### ??????????? | | ??????????????????## ### ??????????? | | ???????????????????## ## ## ???????????? | | ????????????????????## ##?#### ????????????? | | ?????????????????????# % ####???????????????? | | ?????????????????????# ##??????????????? | | ???????????????# ## #????????? ????? | | ???????????????# #???????? ??? | | ???????????????# ##???#### ??? | | ???????????????# ## ##### #????? | | ???????????????# ?# #????? | | ???????????????# ##?## ### #????? | | ???????????????# ????# ##?# #????? | +----------------------------------------------------+ Best States ------------- Heat Dissipation 25 Energy Generation 15 Energy Capacity 250 Matter Stores 300 Matter Capacity 300 Sight Range 21 Terrain Scan Density 10 Armor Coverage 800 Evasion (%) 42 Item Schematics ----------------- None Robot Schematics ------------------ None Fabricated ------------ Nothing Alien Tech Used ----------------- None Achievements -------------- None Challenges ------------ None Game ------ Seed MissileShadingSpecial Manual? 0 Play Time 00:20:24 Cumulative 54.9 hours Start 2024.03.21 @ 18:30:52 End 2024.03.21 @ 18:48:00 Sessions 1 Manual Loads 0 Difficulty Rogue Special Mode None Game No. 39 Rogue 39 Adventurer 0 Explorer 0 Win Type - Total 0 Types 0/0/0/0/0/0/0/0/0 Lore% 12 Gallery% 20 Achievement% 19 Wizard Run 0 Options --------- Layout 1 ASCII 0 Keyboard 1 Movement Arrows Keybinds 0 Fullscreen 2 Font 16/SmallcapsGlow Map View 25x17 Zoom Use 95% Tactical HUD 1 Map Filters NONE Filters NONE Steam 1 RUN: c085c392-3963-425e-86e8-a043948aabdf